fUST/lending_fUST_20240227
["ID","MTS","AMOUNT","RATE_DAILY","PERIOD"]
[315311055,1708979444146,-500.0,0.00019726,2]
[315311056,1708979444156,-500.0,0.00019726,2]
[315311057,1708979444165,-500.0,0.00019726,2]
[315311058,1708979444174,-500.0,0.00019726,2]
[315311059,1708979444183,-500.0,0.00019726,2]
[315311060,1708979444192,-4979.28,0.00019726,2]
[315311061,1708979444202,-500.0,0.00019726,2]
[315311062,1708979444211,-500.0,0.00019726,2]
[315311063,1708979444220,-500.0,0.00019726,2]
[315311064,1708979444230,-1891.05,0.00019726,2]
[315311065,1708979444238,-532.31,0.00019726,2]
[315311066,1708979444247,-1268.9,0.00019726,2]
[315311067,1708979444256,-500.0,0.00019726,2]
[315311068,1708979444266,-500.0,0.00019726,2]
[315311069,1708979444275,-500.0,0.00019726,2]
[315311070,1708979444284,-3634.86,0.00019726,2]
[315311071,1708979444293,-500.0,0.00019726,2]
[315311072,1708979444302,-500.0,0.00019726,2]
[315311073,1708979444311,-1496.34,0.00019726,2]
[315311074,1708979444320,-500.0,0.00019726,2]
[315311075,1708979444330,-1297.29,0.00019726,2]
[315311076,1708979444339,-500.0,0.00019726,2]
[315311077,1708979444348,-500.0,0.00019726,2]
[315311078,1708979444358,-500.0,0.00019726,2]
[315311079,1708979444368,-500.0,0.00019726,2]
[315311080,1708979444377,-920.54,0.00019726,2]
[315311081,1708979444386,-500.0,0.00019726,2]
[315311082,1708979444396,-500.0,0.00019726,2]
[315311083,1708979444405,-500.0,0.00019726,2]
[315311084,1708979444414,-8519.35,0.00019726,2]
[315311085,1708979444425,-1296.01,0.00019726,2]
[315311086,1708979444434,-1484.5,0.00019726,2]
[315311087,1708979444443,-951.26,0.00019726,2]
[315311088,1708979444454,-449.10144349,0.00019726,2]
[315311089,1708979444463,-500.0,0.00019726,2]
[315311090,1708979444471,-500.0,0.00019726,2]
[315311091,1708979444480,-500.0,0.00019726,2]
[315311092,1708979444489,-500.0,0.00019726,2]
[315311093,1708979444498,-912.77,0.00019726,2]
[315311094,1708979444508,-503.59057309,0.00019726,2]
[315311095,1708979444517,-1000.0,0.00019726,2]
[315311096,1708979444526,-525.35,0.00019726,2]
[315311097,1708979444535,-500.0,0.00019726,2]
[315311098,1708979444545,-500.0,0.00019726,2]
[315311099,1708979444554,-287.05748937,0.00019726,2]
[315311100,1708979444563,-500.0,0.00019726,2]
[315311101,1708979444572,-924.04,0.00019726,2]
[315311102,1708979444581,-500.0,0.00019726,2]
[315311103,1708979444590,-500.0,0.00019726,2]
[315311104,1708979444599,-500.0,0.00019726,2]
[315311105,1708979444609,-500.0,0.00019726,2]
[315311106,1708979444618,-585.11134449,0.00019739,2]
[315311107,1708979444627,-500.0,0.00019849,2]
[315311108,1708979444636,-500.0,0.00019849,2]
[315311109,1708979444645,-500.0,0.00019849,2]
[315311110,1708979444654,-500.0,0.00019849,2]
[315311111,1708979444662,-500.0,0.00019849,2]
[315311112,1708979444671,-500.0,0.00019849,2]
[315311113,1708979444680,-500.0,0.00019849,2]
[315311114,1708979444688,-500.0,0.00019849,2]
[315311115,1708979444697,-500.0,0.00019849,2]
[315311116,1708979444706,-500.0,0.00019849,2]
[315311117,1708979444714,-500.0,0.00019849,2]
[315311118,1708979444723,-256.44210122,0.00019849,2]
[315311119,1708979444732,-399.333294,0.00019849,2]
[315311120,1708979444741,-500.0,0.00019889,2]
[315311121,1708979444750,-8230.24916882,0.0001989,2]
[315311122,1708979444759,-500.0,0.00019998,2]
[315311123,1708979444768,-500.0,0.00019998,2]
[315311124,1708979444777,-500.0,0.00019999,2]
[315311125,1708979444787,-500.0,0.00019999,2]
[315311126,1708979444795,-500.0,0.00019999,2]
[315311127,1708979444804,-500.0,0.00019999,2]
[315311128,1708979444813,-500.0,0.00019999,2]
[315311129,1708979444823,-500.0,0.00019999,2]
[315311130,1708979444831,-500.0,0.00019999,2]
[315311131,1708979444841,-500.0,0.00019999,2]
[315311132,1708979444850,-500.0,0.00019999,2]
[315311133,1708979444858,-500.0,0.00019999,2]
[315311134,1708979444867,-500.0,0.00019999,2]
[315311135,1708979444877,-500.0,0.00019999,2]
[315311136,1708979444888,-500.0,0.00019999,2]
[315311137,1708979444897,-256.44210122,0.00019999,2]
[315311138,1708979444906,-399.333294,0.00019999,2]
[315311139,1708979444916,-243.58118859,0.00019999,2]
[315311140,1708979444925,-500.0,0.0002,2]
[315311141,1708979444935,-500.0,0.0002,2]
[315311142,1708979444944,-500.0,0.0002,2]
[315311143,1708979444953,-509.71,0.0002,2]
[315311144,1708979444962,-500.0,0.0002,2]
[315311145,1708979444971,-500.0,0.0002,2]
[315311146,1708979444981,-500.0,0.0002,2]
[315311147,1708979444990,-695.59,0.0002,2]
[315311148,1708979444999,-500.0,0.0002,2]
[315311149,1708979445008,-253.68558529,0.0002,2]
[315311150,1708979445017,-500.0,0.0002,2]
[315311151,1708979445027,-241.821721,0.0002,2]
[315311152,1708979445036,-500.0,0.0002,2]
[315311153,1708979445049,-500.0,0.0002,2]
[315311154,1708979445058,-500.0,0.0002,2]
[315311155,1708979445067,-500.0,0.0002,2]
[315311156,1708979445076,-500.0,0.0002,2]
[315311157,1708979445086,-500.0,0.0002,2]
[315311158,1708979445096,-500.0,0.0002,2]
[315311159,1708979445105,-1265.08,0.0002,2]
[315311160,1708979445115,-500.0,0.0002,2]
[315311161,1708979445124,-537.87,0.0002,2]
[315311162,1708979445137,-500.0,0.0002,2]
[315311163,1708979445147,-779.18,0.0002,2]
[315311164,1708979445156,-500.0,0.0002,2]
[315311165,1708979445165,-5500.00265093,0.0002,2]
[315311166,1708979445174,-500.0,0.0002,2]
[315311167,1708979445183,-500.0,0.0002,2]
[315311168,1708979445193,-500.0,0.0002,2]
[315311169,1708979445202,-600.46,0.0002,2]
[315311170,1708979445211,-457.66523061,0.0002,2]
[315311171,1708979445220,-500.0,0.0002,2]
[315311172,1708979445230,-500.0,0.0002,2]
[315311173,1708979445239,-515.55018952,0.0002,2]
[315311174,1708979445248,-500.0,0.0002,2]
[315311175,1708979445257,-767.39,0.0002,2]
[315311176,1708979445266,-500.0,0.0002,2]
[315311177,1708979445275,-500.0,0.0002,2]
[315311178,1708979445283,-500.0,0.0002,2]
[315311179,1708979445293,-536.17501023,0.0002,2]
[315311180,1708979445302,-500.0,0.0002,2]
[315311181,1708979445311,-500.0,0.0002,2]
[315311182,1708979445320,-1044.91,0.0002,2]
[315311183,1708979445329,-529.59,0.0002,2]
[315311184,1708979445338,-500.0,0.0002,2]
[315311185,1708979445347,-500.0,0.0002,2]
[315311186,1708979445356,-8263.83,0.0002,2]
[315311187,1708979445365,-500.0,0.0002,2]
[315311188,1708979445374,-500.0,0.0002,2]
[315311189,1708979445384,-500.0,0.0002,2]
[315311190,1708979445394,-500.0,0.0002,2]
[315311191,1708979445403,-500.0,0.0002,2]
[315311192,1708979445412,-4979.28,0.0002,2]
[315311193,1708979445422,-500.0,0.0002,2]
[315311194,1708979445431,-500.0,0.0002,2]
[315311195,1708979445440,-500.0,0.0002,2]
[315311196,1708979445450,-1891.05,0.0002,2]
[315311197,1708979445459,-532.31,0.0002,2]
[315311198,1708979445468,-1268.9,0.0002,2]
[315311199,1708979445477,-500.0,0.0002,2]
[315311200,1708979445486,-500.0,0.0002,2]
[315311201,1708979445495,-500.0,0.0002,2]
[315311202,1708979445504,-3634.86,0.0002,2]
[315311203,1708979445514,-500.0,0.0002,2]
[315311204,1708979445523,-500.0,0.0002,2]
[315311205,1708979445532,-1496.34,0.0002,2]
[315311206,1708979445541,-500.0,0.0002,2]
[315311207,1708979445550,-1297.29,0.0002,2]
[315311208,1708979445559,-500.0,0.0002,2]
[315311209,1708979445569,-500.0,0.0002,2]
[315311210,1708979445578,-500.0,0.0002,2]
[315311211,1708979445587,-500.0,0.0002,2]
[315311212,1708979445596,-920.54,0.0002,2]
[315311213,1708979445606,-500.0,0.0002,2]
[315311214,1708979445616,-500.0,0.0002,2]
[315311215,1708979445626,-394.19851739,0.0002,2]
[315311216,1708979445636,-8519.35,0.0002,2]
[315311217,1708979445645,-1296.01,0.0002,2]
[315311218,1708979445655,-1484.5,0.0002,2]
[315311219,1708979445664,-951.26,0.0002,2]
[315311220,1708979445674,-500.0,0.0002,2]
[315311221,1708979445683,-500.0,0.0002,2]
[315311222,1708979445692,-500.0,0.0002,2]
[315311223,1708979445702,-912.77,0.0002,2]
[315311224,1708979445711,-525.35,0.0002,2]
[315311225,1708979445720,-570.73700149,0.0002,2]
[315311226,1708979445730,-445.15151482,0.0002,2]
[315311227,1708979445739,-500.0,0.0002,2]
[315311228,1708979445748,-924.04,0.0002,2]
[315311229,1708979445758,-185.15827025,0.0002,2]
[315311230,1708979445767,-500.0,0.0002,2]
[315311231,1708979445857,-500.0,0.0002,2]
[315311232,1708979445867,-166.666666,0.00020076,2]
[315311233,1708979445876,-585.11134449,0.00020126,2]
[315311234,1708979445886,-243.58118859,0.00020272,2]
[315311235,1708979445896,-500.0,0.00020272,2]
[315311236,1708979445906,-500.0,0.00020272,2]
[315311237,1708979445915,-500.0,0.00020273,2]
[315311238,1708979445924,-500.0,0.00020273,2]
[315311239,1708979445933,-509.71,0.00020273,2]
[315311240,1708979445942,-500.0,0.00020273,2]
[315311241,1708979445952,-695.59,0.00020273,2]
[315311242,1708979445961,-599.32113088,0.00020273,2]
[315311243,1708979445971,-500.0,0.00020273,2]
[315311244,1708979445981,-500.0,0.00020273,2]
[315311245,1708979445991,-500.0,0.00020273,2]
[315311246,1708979446000,-485.65562093,0.00020273,2]
[315311247,1708979446010,-409.1306388,0.00020273,2]
[315311248,1708979446019,-504.22081806,0.00020273,2]
[315311249,1708979446028,-500.0,0.00020273,2]
[315311250,1708979446037,-190.00415055,0.00020273,2]
[315311251,1708979446047,-1265.08,0.00020273,2]
[315311252,1708979446056,-500.0,0.00020273,2]
[315311253,1708979446069,-537.87,0.00020273,2]
[315311254,1708979446078,-500.0,0.00020273,2]
[315311255,1708979446087,-779.18,0.00020273,2]
[315311256,1708979446097,-503.32932476,0.00020273,2]
[315311257,1708979446107,-500.0,0.00020273,2]
[315311258,1708979446116,-500.0,0.00020273,2]
[315311259,1708979446124,-500.0,0.00020273,2]
[315311260,1708979446135,-600.46,0.00020273,2]
[315311262,1708979446146,-500.0,0.00020273,2]
[315311264,1708979446155,-500.0,0.00020273,2]
[315311265,1708979446164,-500.0,0.00020273,2]
[315311267,1708979446173,-767.39,0.00020273,2]
[315311269,1708979446182,-500.0,0.00020273,2]
[315311270,1708979446191,-503.94397976,0.00020273,2]
[315311271,1708979446201,-500.0,0.00020273,2]
[315311273,1708979446211,-1044.91,0.00020273,2]
[315311275,1708979446220,-529.59,0.00020273,2]
[315311277,1708979446229,-500.0,0.00020273,2]
[315311279,1708979446239,-500.0,0.00020273,2]
[315311280,1708979446248,-8263.83,0.00020273,2]
[315311282,1708979446257,-500.0,0.00020273,2]
[315311284,1708979446267,-500.0,0.00020273,2]
[315311285,1708979446276,-500.0,0.00020273,2]
[315311287,1708979446285,-503.94439511,0.00020273,2]
[315311288,1708979446294,-500.0,0.00020273,2]
[315311289,1708979446303,-4979.28,0.00020273,2]
[315311290,1708979446312,-500.0,0.00020273,2]
[315311291,1708979446321,-500.0,0.00020273,2]
[315311292,1708979446330,-1891.05,0.00020273,2]
[315311293,1708979446339,-532.31,0.00020273,2]
[315311294,1708979446349,-1268.9,0.00020273,2]
[315311295,1708979446358,-208.72177889,0.00020273,2]
[315311296,1708979446367,-500.0,0.00020273,2]
[315311297,1708979446376,-500.0,0.00020273,2]
[315311298,1708979446387,-3634.86,0.00020273,2]
[315311299,1708979446398,-500.0,0.00020273,2]
[315311300,1708979446407,-500.0,0.00020273,2]
[315311301,1708979446417,-1496.34,0.00020273,2]
[315311302,1708979446426,-1297.29,0.00020273,2]
[315311303,1708979446436,-609.03734484,0.00020273,2]
[315311304,1708979446444,-500.0,0.00020273,2]
[315311305,1708979446454,-500.0,0.00020273,2]
[315311306,1708979446463,-920.54,0.00020273,2]
[315311307,1708979446472,-500.0,0.00020273,2]
[315311308,1708979446482,-504.38560451,0.00020273,2]
[315311309,1708979446491,-8519.35,0.00020273,2]
[315311310,1708979446501,-1296.01,0.00020273,2]
[315311311,1708979446510,-1484.5,0.00020273,2]
[315311312,1708979446519,-951.26,0.00020273,2]
[315311313,1708979446528,-500.0,0.00020273,2]
[315311314,1708979446537,-309.24117467,0.00020273,2]
[315311315,1708979446546,-912.77,0.00020273,2]
[315311316,1708979446555,-525.35,0.00020273,2]
[315311317,1708979446564,-500.0,0.00020273,2]
[315311318,1708979446573,-924.04,0.00020273,2]
[315311319,1708979446582,-501.24203989,0.00020273,2]
[315311320,1708979446591,-500.0,0.00020273,2]
[315311321,1708979446601,-2463.51589491,0.00020447,2]
[315311322,1708979446611,-2463.51589487,0.00020497,2]
[315311323,1708979446620,-585.11134449,0.00020513,2]
[315311324,1708979446630,-166.666666,0.00020524,2]
[315311325,1708979446639,-1215.24,0.00020538,3]
[315311326,1708979446648,-580.70890417,0.00020546,2]
[315311327,1708979446657,-500.0,0.00020547,2]
[315311328,1708979446666,-500.0,0.00020547,2]
[315311329,1708979446675,-509.71,0.00020547,2]
[315311330,1708979446684,-500.0,0.00020547,2]
[315311331,1708979446693,-695.59,0.00020547,2]
[315311332,1708979446703,-500.0,0.00020547,2]
[315311333,1708979446712,-500.0,0.00020547,2]
[315311334,1708979446722,-500.0,0.00020547,2]
[315311335,1708979446731,-543.34,0.00020547,2]
[315311336,1708979446740,-1265.08,0.00020547,2]
[315311337,1708979446749,-500.0,0.00020547,2]
[315311338,1708979446758,-537.87,0.00020547,2]
[315311339,1708979446768,-500.0,0.00020547,2]
[315311340,1708979446777,-779.18,0.00020547,2]
[315311341,1708979446786,-500.0,0.00020547,2]
[315311342,1708979446795,-500.0,0.00020547,2]
[315311343,1708979446805,-500.0,0.00020547,2]
[315311344,1708979446814,-600.46,0.00020547,2]
[315311345,1708979446824,-500.0,0.00020547,2]
[315311346,1708979446833,-500.0,0.00020547,2]
[315311347,1708979446843,-500.0,0.00020547,2]
[315311348,1708979446857,-767.39,0.00020547,2]
[315311349,1708979446871,-500.0,0.00020547,2]
[315311350,1708979446885,-500.0,0.00020547,2]
[315311351,1708979446898,-1044.91,0.00020547,2]
[315311352,1708979446908,-529.59,0.00020547,2]
[315311353,1708979446919,-500.0,0.00020547,2]
[315311354,1708979446931,-298.70806404,0.00020547,2]
[315311355,1708979446944,-8263.83,0.00020547,2]
[315311356,1708979446958,-500.0,0.00020547,2]
[315311357,1708979446970,-500.0,0.00020547,2]
[315311358,1708979446984,-500.0,0.00020547,2]
[315311359,1708979446996,-500.0,0.00020547,2]
[315311360,1708979447006,-4979.28,0.00020547,2]
[315311361,1708979447017,-500.0,0.00020547,2]
[315311362,1708979447029,-500.0,0.00020547,2]
[315311363,1708979447042,-1891.05,0.00020547,2]
[315311364,1708979447060,-532.31,0.00020547,2]
[315311365,1708979447071,-1268.9,0.00020547,2]
[315311366,1708979447083,-500.0,0.00020547,2]
[315311367,1708979447098,-500.0,0.00020547,2]
[315311368,1708979447109,-3634.86,0.00020547,2]
[315311369,1708979447120,-500.0,0.00020547,2]
[315311370,1708979447134,-500.0,0.00020547,2]
[315311371,1708979447148,-1496.34,0.00020547,2]
[315311372,1708979447160,-1297.29,0.00020547,2]
[315311373,1708979447172,-500.0,0.00020547,2]
[315311374,1708979447184,-500.0,0.00020547,2]
[315311375,1708979447195,-920.54,0.00020547,2]
[315311376,1708979447206,-500.0,0.00020547,2]
[315311377,1708979447218,-8519.35,0.00020547,2]
[315311378,1708979447230,-1296.01,0.00020547,2]
[315311379,1708979447242,-1484.5,0.00020547,2]
[315311380,1708979447255,-951.26,0.00020547,2]
[315311381,1708979447267,-500.0,0.00020547,2]
[315311382,1708979447280,-912.77,0.00020547,2]
[315311383,1708979447292,-525.35,0.00020547,2]
[315311384,1708979447302,-924.04,0.00020547,2]
[315311385,1708979447313,-500.0,0.00020547,2]
[315311386,1708979447323,-2463.51589487,0.00020548,2]
[315311387,1708979447334,-6823.35572291,0.00020551,2]
[315311388,1708979447346,-2564.48550716,0.00020551,2]
[315311389,1708979447358,-31661.98511283,0.00020551,2]
[315311390,1708979447368,-301.347814,0.00020551,2]
[315311391,1708979447381,-3135.03351645,0.00020551,2]
[315311392,1708979447393,-188.671875,0.00020551,2]
[315311393,1708979447404,-945.13377345,0.00020551,2]
[315311394,1708979447414,-1043.95286624,0.00020553,2]
[315311395,1708979447423,-2463.51589487,0.00020598,2]
[315311396,1708979447434,-2463.51589487,0.00020648,2]
[315311397,1708979447445,-2463.51589487,0.00020699,2]
[315311398,1708979447456,-500.0,0.00020741,2]
[315311399,1708979447467,-500.0,0.00020741,2]
[315311400,1708979447477,-500.0,0.00020741,2]
[315311401,1708979447488,-500.0,0.00020741,2]
[315311402,1708979447499,-500.0,0.00020741,2]
[315311403,1708979447510,-500.0,0.00020741,2]
[315311404,1708979447521,-500.0,0.00020741,2]
[315311405,1708979447532,-500.0,0.00020741,2]
[315311406,1708979447543,-500.0,0.00020741,2]
[315311407,1708979447553,-399.333294,0.00020741,2]
[315311408,1708979447565,-11092.6720911,0.00020742,2]
[315311409,1708979447576,-86864.15046717,0.00020743,2]
[315311410,1708979447586,-2463.51589487,0.00020749,2]
[315311411,1708979447598,-50000.0,0.00020793,2]
[315311412,1708979447609,-2463.51589487,0.00020799,2]
[315311413,1708979447621,-275.35808168,0.00020819,2]
[315311414,1708979447632,-500.0,0.00020821,2]
[315311415,1708979447643,-509.71,0.00020821,2]
[315311416,1708979447654,-695.59,0.00020821,2]
[315311417,1708979447664,-500.0,0.00020821,2]
[315311418,1708979447676,-500.0,0.00020821,2]
[315311419,1708979447687,-500.0,0.00020821,2]
[315311420,1708979447698,-1265.08,0.00020821,2]
[315311421,1708979447709,-500.0,0.00020821,2]
[315311422,1708979447720,-537.87,0.00020821,2]
[315311423,1708979447731,-500.0,0.00020821,2]
[315311424,1708979447743,-779.18,0.00020821,2]
[315311425,1708979447755,-500.0,0.00020821,2]
[315311426,1708979447766,-500.0,0.00020821,2]
[315311427,1708979447776,-500.0,0.00020821,2]
[315311428,1708979447787,-600.46,0.00020821,2]
[315311429,1708979447798,-500.0,0.00020821,2]
[315311430,1708979447809,-328.19481189,0.00020821,2]
[315311431,1708979447820,-767.39,0.00020821,2]
[315311432,1708979447832,-194.86615274,0.00020821,2]
[315311433,1708979447843,-500.0,0.00020821,2]
[315311434,1708979447853,-1044.91,0.00020821,2]
[315311435,1708979447864,-529.59,0.00020821,2]
[315311436,1708979447875,-500.0,0.00020821,2]
[315311437,1708979447888,-8263.83,0.00020821,2]
[315311438,1708979447899,-500.0,0.00020821,2]
[315311439,1708979447910,-500.0,0.00020821,2]
[315311440,1708979447921,-500.0,0.00020821,2]
[315311441,1708979447931,-500.0,0.00020821,2]
[315311442,1708979447941,-4979.28,0.00020821,2]
[315311443,1708979447950,-500.0,0.00020821,2]
[315311444,1708979447959,-500.0,0.00020821,2]
[315311445,1708979447968,-1891.05,0.00020821,2]
[315311446,1708979447978,-532.31,0.00020821,2]
[315311447,1708979447987,-1268.9,0.00020821,2]
[315311448,1708979447997,-500.0,0.00020821,2]
[315311449,1708979448126,-500.0,0.00020821,2]
[315311450,1708979448138,-3634.86,0.00020821,2]
[315311451,1708979448147,-500.0,0.00020821,2]
[315311452,1708979448157,-500.0,0.00020821,2]
[315311453,1708979448166,-1496.34,0.00020821,2]
[315311454,1708979448176,-1297.29,0.00020821,2]
[315311455,1708979448186,-500.0,0.00020821,2]
[315311456,1708979448195,-500.0,0.00020821,2]
[315311457,1708979448204,-920.54,0.00020821,2]
[315311458,1708979448214,-500.0,0.00020821,2]
[315311459,1708979448223,-8519.35,0.00020821,2]
[315311460,1708979448233,-1296.01,0.00020821,2]
[315311461,1708979448243,-1484.5,0.00020821,2]
[315311462,1708979448252,-951.26,0.00020821,2]
[315311463,1708979448262,-500.0,0.00020821,2]
[315311464,1708979448271,-912.77,0.00020821,2]
[315311465,1708979448280,-525.35,0.00020821,2]
[315311466,1708979448289,-924.04,0.00020821,2]
[315311467,1708979448298,-500.0,0.00020821,2]
[315311468,1708979448308,-50000.0,0.00020843,2]
[315311469,1708979448316,-2463.51589487,0.0002085,2]
[315311470,1708979448325,-50000.0,0.00020892,2]
[315311471,1708979448334,-585.11134449,0.000209,2]
[315311472,1708979448343,-2463.51589487,0.000209,2]
[315311473,1708979448352,-50000.0,0.00020942,2]
[315311474,1708979448362,-2039.29246323,0.00020942,2]
[315311475,1708979448371,-8827.6737906,0.00020942,2]
[315311476,1708979448382,-35695.11402372,0.00020942,2]
[315311477,1708979448391,-166.666666,0.00020973,2]
[315311478,1708979448401,-179.43256387,0.00020998,2]
[315311479,1708979448411,-290.05288383,0.00020998,2]
[315311480,1708979448420,-428.88796945,0.00020998,2]
[315311481,1708979448430,-538.0,0.00020998,2]
[315311482,1708979448439,-626.17635466,0.00020998,2]
[315311483,1708979448449,-279.31187596,0.00020998,2]
[315311484,1708979448458,-160.0,0.00020999,2]
[315311485,1708979448468,-160.0,0.00020999,2]
[315311486,1708979448478,-273.23870182,0.00020999,2]
[315311487,1708979448488,-471.63876453,0.00020999,2]
[315311488,1708979448497,-1389.56409544,0.00020999,2]
[315311489,1708979448507,-600.0,0.00020999,2]
[315311490,1708979448516,-500.0,0.00020999,2]
[315311491,1708979448526,-500.0,0.00020999,2]
[315311492,1708979448535,-350.38713741,0.00020999,2]
[315311493,1708979448545,-500.0,0.00020999,2]
[315311494,1708979448554,-500.0,0.00020999,2]
[315311495,1708979448564,-300.0,0.00020999,2]
[315311496,1708979448574,-500.0,0.00020999,2]
[315311497,1708979448583,-500.0,0.00020999,2]
[315311498,1708979448592,-500.0,0.00020999,2]
[315311499,1708979448602,-500.0,0.00020999,2]
[315311500,1708979448612,-500.0,0.00020999,2]
[315311501,1708979448621,-500.0,0.00020999,2]
[315311502,1708979448631,-500.0,0.00020999,2]
[315311503,1708979448641,-500.0,0.00020999,2]
[315311504,1708979448650,-500.0,0.00020999,2]
[315311505,1708979448660,-500.0,0.00020999,2]
[315311506,1708979448669,-500.0,0.00020999,2]
[315311507,1708979448678,-500.0,0.00020999,2]
[315311508,1708979448688,-256.44210122,0.00020999,2]
[315311509,1708979448697,-399.333294,0.00020999,2]
[315311510,1708979448706,-243.58118859,0.00020999,2]
[315311511,1708979448715,-825761.21883039,0.00021,2]
[315311512,1708979448797,-5000.0,0.00021,2]
[315311513,1708979448863,-31821.1039004,0.00021,2]
[315311514,1708979448910,-500.0,0.00019178,2]
[315311515,1708979448920,-14914.79339983,0.00021,2]
[315316842,1708980049132,381.8655801,0.00015365,2]
[315316843,1708980148535,595.6313968,0.0001529,2]
[315316845,1708980199653,24900.0,0.00015291,2]
[315316851,1708980372043,635.835789,0.00015274,2]
[315316852,1708980415911,7209.2918932,0.00015327,2]
[315318096,1708980631976,-188.38117424,0.0001573,2]
[315318098,1708980631986,-300.77936664,0.00015828,2]
[315318099,1708980631995,-883.13049723,0.00015829,2]
[315318100,1708980632004,-281.44189552,0.0001583,2]
[315318102,1708980632014,-159.80558045,0.00015831,2]
[315318103,1708980632024,-973.65259027,0.00015863,2]
[315318104,1708980632036,-194.49618343,0.00015863,2]
[315318106,1708980632046,-2278.2060247,0.00016054,2]
[315318278,1708980638141,-17424.46891105,0.00016054,2]
[315318279,1708980638151,-1869.1800332,0.00016055,2]
[315318280,1708980638161,-300.0,0.00016372,2]
[315318281,1708980638170,-160.12079,0.0001638,2]
[315318282,1708980638179,-261.77212706,0.00016998,2]
[315318283,1708980638189,-273.88290382,0.00016999,2]
[315318284,1708980638200,-640.23476295,0.00017271,2]
[315318285,1708980638210,-155.25057702,0.00017272,2]
[315318286,1708980638219,-3615.32800448,0.00017375,2]
[315318287,1708980638229,-420.0,0.00017894,2]
[315318288,1708980638240,-1118.59801173,0.00017999,2]
[315318289,1708980638249,-26182.88662904,0.00018,2]
[315318290,1708980638259,-155.15360207,0.000189,2]
[315318291,1708980638269,-3921.03127874,0.000189,2]
[315318293,1708980638278,-158.70420018,0.00019078,2]
[315318294,1708980638288,-264.42,0.00019168,3]
[315318295,1708980638297,-523.63,0.00019168,3]
[315318296,1708980638307,-261.82,0.00019168,3]
[315318298,1708980638316,-785.46,0.00019168,3]
[315318299,1708980638326,-516.12591653,0.00019178,2]
[315318300,1708980638335,-500.0,0.00019178,2]
[315318302,1708980638345,-172.04761987,0.00019178,2]
[315318303,1708980638354,-500.0,0.00019178,2]
[315318304,1708980638363,-500.60648921,0.00019178,2]
[315318305,1708980638373,-500.0,0.00019178,2]
[315318307,1708980638385,-500.0,0.00019178,2]
[315318308,1708980638394,-151.0,0.00019178,2]
[315318309,1708980638404,-500.0,0.00019178,2]
[315318310,1708980638414,-500.0,0.00019178,2]
[315318312,1708980638424,-276.13419307,0.00019178,2]
[315318313,1708980638434,-500.0,0.00019178,2]
[315318314,1708980638443,-500.0,0.00019178,2]
[315318315,1708980638453,-500.0,0.00019178,2]
[315318317,1708980638462,-229.23019617,0.00019178,2]
[315318318,1708980638472,-500.0,0.00019178,2]
[315318319,1708980638481,-500.0,0.00019178,2]
[315318321,1708980638490,-500.73988973,0.00019178,2]